bitfinex/quotes_ETHUSD_20250210
["timestamp","ask_amount","ask_price","bid_price","bid_amount"]
[1739229266542,4.5308,2662.2,2661.6,4.55004]
[1739229266846,3.75658,2662.0,2661.6,0.793]
[1739229267443,7.51324,2662.0,2661.4,4.55033]
[1739229267628,0.7745,2661.9,2661.4,4.55033]
[1739229267828,4.53122,2661.9,2661.4,4.55033]
[1739229269319,4.53122,2661.9,2661.4,8.30766]
[1739229269520,4.53122,2661.9,2661.4,4.55033]
[1739229270166,0.7745,2661.9,2661.4,4.55033]
[1739229270338,0.7745,2661.9,2661.4,8.30766]
[1739229270520,0.7745,2661.9,2661.4,4.55033]
[1739229270962,0.7745,2661.9,2661.5,0.03756834]
[1739229271266,3.75622,2662.3,2661.8,0.793]
[1739229271421,0.7745,2662.4,2661.9,3.75668]
[1739229271755,0.7745,2662.4,2661.9,0.03756365]
[1739229271942,0.7745,2662.4,2662.0,3.7565]
[1739229272182,0.7745,2662.4,2662.0,3.75657]
[1739229273020,0.7745,2662.4,2662.1,3.75641]
[1739229273955,0.7745,2662.4,2662.0,3.75657]
[1739229275425,0.7745,2662.4,2661.8,8.30652]
[1739229275765,0.7745,2662.4,2661.9,3.75671]
[1739229275964,4.53057,2662.4,2661.8,8.30652]
[1739229276274,3.75615,2662.3,2661.8,4.54976]
[1739229276448,0.7745,2662.4,2661.9,3.75669]
[1739229276646,4.53052,2662.4,2661.9,3.75669]
[1739229277039,0.7745,2662.4,2662.0,3.75655]
[1739229277370,4.53023,2662.6,2662.1,3.75643]
[1739229278080,3.75553,2662.8,2662.3,3.75612]
[1739229278382,3.0,2662.7,2662.2,4.58676078]
[1739229278564,3.75561,2662.7,2662.2,4.58676078]
[1739229280056,3.75561,2662.7,2662.2,4.5492]
[1739229280462,3.75575,2662.6,2662.2,0.793]
[1739229280975,4.57555,2662.6,2662.2,0.793]
[1739229283525,4.57555,2662.6,2662.1,3.75642]
[1739229283684,3.75589,2662.5,2662.1,3.75642]
[1739229284804,3.75589,2662.5,2662.0,4.56]
[1739229285164,3.75589,2662.5,2662.0,0.8035]
[1739229285573,3.75608,2662.4,2662.0,0.8035]
[1739229285767,4.57609,2662.2,2661.7,4.56046]
[1739229285985,0.8198,2662.2,2661.5,4.56064]
[1739229286281,4.57615,2662.2,2661.7,3.75698]
[1739229286493,3.75681,2661.9,2661.5,0.8035]
[1739229286790,7.51295,2662.1,2661.5,4.56074]
[1739229287011,3.75643,2662.1,2661.6,3.75711]
[1739229287514,0.8198,2662.2,2661.7,3.75692]
[1739229287674,0.8198,2662.2,2661.8,3.75675]
[1739229287875,0.8198,2662.2,2661.5,4.56069]
[1739229288180,3.75644,2662.1,2661.6,3.75713]
[1739229290008,3.75644,2662.1,2661.5,4.56065]
[1739229290208,0.8198,2661.8,2661.4,3.75739]
[1739229290411,0.8198,2661.8,2661.3,4.56096]
[1739229291094,0.8198,2661.8,2661.4,3.75731]
[1739229291610,0.8198,2661.8,2661.3,8.31843]
[1739229292014,0.8198,2661.8,2661.3,4.56096]
[1739229292227,4.57666,2661.8,2661.3,4.56096]
[1739229292726,0.8198,2661.8,2661.3,3.75746]
[1739229292933,3.75701,2661.7,2661.3,3.75746]
[1739229293288,4.57668,2661.8,2661.3,3.75746]
[1739229293488,0.8198,2661.8,2661.4,3.75741]
[1739229293696,0.8198,2661.8,2661.4,4.58991]
[1739229294630,0.8198,2661.8,2661.4,0.8325]
[1739229294982,0.8198,2661.8,2661.5,3.75727]
[1739229295180,0.8198,2661.8,2661.4,0.8325]
[1739229295425,0.8198,2661.8,2661.4,4.5899]
[1739229297422,4.57666,2661.8,2661.4,4.5899]
[1739229297992,0.8198,2661.8,2661.4,4.5899]
[1739229299356,0.8198,2661.8,2661.4,4.58984]
[1739229299914,3.0,2662.0,2661.4,0.8325]
[1739229300232,3.75624,2662.3,2661.8,3.75684]
[1739229300428,3.75629,2662.2,2661.8,0.8325]
[1739229300810,3.7571,2662.4,2661.4,0.8325]
[1739229301132,3.75617,2662.3,2661.8,3.75684]
[1739229301331,0.7571,2662.4,2661.9,0.8325]
[1739229301647,0.7571,2662.4,2662.1,3.75633]
[1739229301853,0.7571,2662.4,2661.9,0.8325]
[1739229302158,0.7571,2662.4,2662.0,3.75649]
[1739229302671,4.51278,2662.7,2661.9,0.8325]
[1739229302820,4.51278,2662.7,2662.3,0.8325]
[1739229303024,0.7571,2662.7,2662.3,4.58854]
[1739229303265,3.7554,2662.9,2662.3,4.58854]
[1739229303463,3.0,2662.8,2662.3,4.58854]
[1739229303686,3.75485,2663.3,2662.7,3.75556]
[1739229303964,4.19048587,2663.8,2662.7,3.75556]
[1739229303965,4.51135,2663.7,2663.0,3.75514]
[1739229304167,4.51135,2663.7,2662.9,3.75521]
[1739229304315,3.75456,2663.5,2663.0,3.75514]
[1739229304925,3.75456,2663.5,2662.9,3.75521]
[1739229305132,3.75462,2663.4,2662.9,3.75521]
[1739229305950,3.75456,2663.5,2662.9,3.75521]
[1739229306347,3.75462,2663.4,2662.7,4.58802]
[1739229306666,4.5121,2663.2,2662.5,4.58828]
[1739229306960,0.7571,2663.2,2662.5,0.8325]
[1739229307274,3.75512,2663.1,2662.5,0.8325]
[1739229308858,5.35,2663.1,2662.5,4.58827]
[1739229309155,5.35,2663.1,2662.6,3.75569]
[1739229309320,5.35,2663.1,2662.6,7.51132]
[1739229309519,5.35,2663.1,2662.6,3.75563]
[1739229309943,5.35,2663.1,2662.6,7.51126]
[1739229310197,9.9992,2663.1,2662.6,3.75563]
[1739229310343,9.9992,2663.1,2662.8,3.75544]
[1739229310538,9.9992,2663.1,2662.9,0.8263]
[1739229311203,9.9992,2663.1,2663.0,3.75516]
[1739229311483,9.9992,2663.1,2663.0,4.58146]
[1739229312248,4.6492,2663.1,2663.0,4.58146]
[1739229314087,4.6492,2663.1,2663.0,4.58896]
[1739229314271,4.6492,2663.1,2663.0,9.18342899]
[1739229314447,4.6492,2663.1,2663.0,4.58896]
[1739229315867,4.6492,2663.1,2663.0,4.58146]
[1739229319642,4.6492,2663.1,2663.0,4.58896]
[1739229320893,3.35192351,2663.1,2663.0,4.59646]
[1739229321965,3.35192351,2663.1,2663.0,4.63400272]
[1739229322359,3.35192351,2663.1,2663.0,5.14646]
[1739229324784,3.35192351,2663.1,2663.0,4.59646]
[1739229326075,0.793,2664.1,2663.4,3.75457]
[1739229326237,0.793,2664.1,2663.2,3.7548]
[1739229326440,4.54666,2664.1,2663.3,3.75474]
[1739229327182,3.7535,2664.2,2663.4,0.7555]
[1739229327421,5.35,2664.3,2663.5,3.75445]
[1739229327687,9.1034,2664.3,2663.6,0.03753678]
[1739229327901,5.35,2664.3,2663.6,3.79182678]
[1739229328036,5.35,2664.3,2663.5,3.75438]
[1739229328237,5.35,2664.3,2663.6,3.75429]
[1739229328534,3.75348,2664.2,2663.4,1.5112226]
[1739229328987,0.7504,2664.0,2663.4,1.5112226]
[1739229329182,3.75396,2663.9,2663.4,0.7557226]
[1739229329484,4.50428,2664.0,2663.1,5.30269529]
[1739229329841,0.7504,2664.0,2663.3,3.75468]
[1739229330041,0.7504,2664.0,2663.3,3.79221994]
[1739229330279,0.7504,2664.0,2663.2,3.7548]
[1739229330594,3.75401,2663.9,2663.1,5.26518534]
[1739229331080,3.75389,2663.9,2663.1,5.26525534]
[1739229331265,3.75389,2663.9,2663.2,3.75485]
[1739229331439,3.3519,2663.9,2663.2,3.75485]
[1739229331840,3.3519,2663.9,2663.3,3.75472]
[1739229332140,3.3519,2663.9,2663.4,4.51005]
[1739229332479,3.3519,2663.9,2663.4,0.7555]
[1739229332903,3.3519,2663.9,2663.2,0.7555]
[1739229333202,3.75433,2663.6,2663.1,0.75474534]
[1739229333511,3.75433,2663.6,2662.9,4.59366899]
[1739229334214,0.7504,2663.7,2662.9,4.59366899]
[1739229334390,0.7504,2663.7,2662.9,5.32691461]
[1739229334706,3.75455,2663.5,2662.9,4.59366899]
[1739229335410,3.75419,2663.7,2662.9,4.59366899]
[1739229335411,0.7504,2663.4,2662.9,4.59366899]
[1739229335616,4.50501,2663.4,2662.9,4.59366899]
[1739229337804,0.7504,2663.6,2663.0,0.7555]
[1739229340253,4.50475,2663.6,2663.0,0.7555]
[1739229340618,3.75456,2663.5,2663.0,0.7555]
[1739229341315,4.50475,2663.6,2662.9,4.59366899]
[1739229341316,3.75463,2663.4,2662.9,4.59366899]
[1739229341515,0.7504,2663.3,2662.9,4.59366899]
[1739229341946,4.50524,2663.3,2662.9,4.59366899]
[1739229342711,4.50522,2663.3,2662.9,4.59366899]
[1739229343829,0.7504,2663.3,2662.9,4.59366899]
[1739229344343,8.25951,2663.5,2662.9,4.59366899]
[1739229345356,3.75462,2663.4,2662.9,4.59366899]
[1739229345561,8.25945,2663.5,2662.9,4.59366899]
[1739229345744,3.75462,2663.4,2662.9,4.59366899]
[1739229346657,4.50492,2663.5,2662.9,4.59366899]
[1739229346832,7.85624,2663.9,2663.1,3.75492]
[1739229347032,4.1023,2663.9,2663.2,4.55187446]
[1739229347233,7.8562,2663.9,2663.2,3.75475]
[1739229347634,7.8562,2663.9,2663.3,0.7555]
[1739229348469,4.1023,2663.9,2663.3,0.7555]
[1739229348635,3.3519,2663.9,2663.4,0.03754098]
[1739229348962,3.3519,2663.9,2663.6,3.75429]
[1739229349166,3.3519,2663.9,2663.7,0.7555]
[1739229350549,3.3519,2663.9,2663.5,1.49635771]
[1739229350862,7.10588,2663.9,2663.3,0.7555]
[1739229351021,3.3519,2663.9,2663.3,4.54774962]
[1739229351230,3.3519,2663.9,2663.3,0.79303962]
[1739229351446,3.3519,2663.9,2663.3,0.7555]
[1739229352168,7.10587,2663.9,2663.3,0.7555]
[1739229352326,3.75405,2663.8,2663.3,0.7555]
[1739229353245,3.3519,2663.9,2663.3,0.7555]
[1739229354275,3.3519,2663.9,2663.3,0.79303967]
[1739229354558,3.3519,2663.9,2663.3,0.7555]
[1739229355322,7.10587,2663.9,2663.3,0.7555]
[1739229355524,3.3519,2663.9,2663.3,1.51030776]
[1739229355748,3.3519,2663.9,2663.3,5.26504776]
[1739229356664,7.10581,2663.9,2663.3,1.51030776]
[1739229356974,3.3519,2663.9,2663.3,1.54784789]
[1739229357767,3.3519,2663.9,2663.3,5.26499776]
[1739229358273,3.3519,2663.9,2663.3,1.51030776]
[1739229358461,3.3519,2663.9,2663.4,3.75459]
[1739229361457,3.3519,2663.9,2663.3,1.51030776]
[1739229361458,7.1058,2663.9,2663.3,1.51030776]
[1739229361652,0.817,2663.8,2663.3,1.51030776]
[1739229362051,4.57104,2663.8,2663.3,1.51030776]
[1739229363382,0.817,2663.8,2663.3,1.51030776]
[1739229364096,0.817,2663.8,2663.3,5.302568]
[1739229364599,0.817,2663.8,2663.4,3.75458]
[1739229364779,3.3519,2663.9,2663.5,3.75445]
[1739229365580,3.3519,2663.9,2663.4,3.75458]
[1739229365903,3.3519,2663.9,2663.8,0.7821]
[1739229366102,3.3519,2663.9,2663.8,4.57366665]
[1739229366826,3.3519,2663.9,2663.8,4.53613]
[1739229367001,2.2732,2663.9,2663.8,4.58116334]
[1739229367639,2.2732,2663.9,2663.8,4.54363]
[1739229368419,2.2732,2663.9,2663.8,4.58116295]
[1739229369222,2.2732,2663.9,2663.8,5.31063711]
[1739229369979,2.2732,2663.9,2663.8,5.3481701]
[1739229370218,2.2732,2663.9,2663.8,5.31063711]
[1739229370653,2.2732,2663.9,2663.8,5.30313711]
[1739229372152,2.2732,2663.9,2663.8,5.34067127]
[1739229372352,2.2732,2663.9,2663.8,5.30313711]
[1739229372664,2.2732,2663.9,2663.8,5.34067051]
[1739229373225,2.2732,2663.9,2663.8,5.30313711]
[1739229373863,2.2732,2663.9,2663.8,5.31063711]
[1739229375666,2.2732,2663.9,2663.8,5.31813711]
[1739229376321,2.2732,2663.9,2663.8,5.31063711]
[1739229377479,2.2732,2663.9,2663.8,5.34816977]
[1739229377684,2.2732,2663.9,2663.8,5.31063711]
[1739229377941,2.2732,2663.9,2663.8,1.54910711]
[1739229379656,2.2732,2663.9,2663.8,0.76700711]
[1739229379944,2.2732,2663.9,2663.5,4.51881704]
[1739229380100,2.2732,2663.9,2663.5,0.76444704]
[1739229381152,2.2732,2663.9,2663.3,4.04177857]
[1739229381153,2.2732,2663.9,2663.7,3.75408]
[1739229381659,2.2732,2663.9,2663.6,0.763]
[1739229382333,0.7511,2663.8,2663.5,0.75415121]
[1739229382517,0.7511,2663.8,2663.4,3.75451]
[1739229383244,2.2732,2663.9,2663.5,3.79198896]
[1739229383823,2.2732,2663.9,2663.5,0.03753896]
[1739229384036,2.2732,2663.9,2663.5,3.75442]
[1739229384456,2.2732,2663.9,2663.6,0.83123854]
[1739229384621,2.2732,2663.9,2663.8,3.75403]
[1739229385869,2.2732,2663.9,2663.8,4.55523]
[1739229388241,2.2732,2663.9,2663.8,5.31344473]
[1739229388621,2.2732,2663.9,2663.8,5.35847749]
[1739229389262,2.2732,2663.9,2663.8,8.90847749]
[1739229389416,2.2732,2663.9,2663.8,8.87094473]
[1739229391925,0.78315682,2663.9,2663.8,8.87094473]
[1739229392539,6.82e-06,2663.9,2663.8,9.07094473]
[1739229393268,6.82e-06,2663.9,2663.8,9.17094473]
[1739229394174,6.82e-06,2663.9,2663.8,9.07094473]
[1739229394669,6.82e-06,2663.9,2663.8,8.87094473]
[1739229395250,0.7511,2664.6,2664.1,3.75353]
[1739229395585,0.7511,2664.6,2664.1,7.50706]
[1739229395771,0.7511,2664.6,2664.2,3.75345]
[1739229395951,0.7511,2664.6,2663.9,0.565]
[1739229396142,0.7511,2664.6,2664.2,0.7937]
[1739229396344,0.7511,2664.6,2664.4,3.75317]
[1739229397559,0.7511,2664.6,2664.2,3.75337]
[1739229397892,0.7511,2664.6,2664.2,8.26483584]
[1739229398102,0.7511,2664.6,2664.3,3.7533]
[1739229398285,0.7511,2664.6,2664.2,4.51145584]
[1739229399994,0.7511,2664.6,2664.2,3.75337]
[1739229400497,0.7511,2664.6,2664.2,4.51205028]
[1739229400791,3.75267,2664.8,2663.5,0.7937]
[1739229400792,0.7511,2664.3,2663.5,0.7937]
[1739229401095,0.7511,2664.3,2663.8,4.50169294]
[1739229401293,0.7511,2664.3,2663.8,0.74778294]
[1739229401497,0.7511,2664.3,2663.9,3.75388]
[1739229401983,0.7511,2664.3,2664.0,3.75365]
[1739229402295,0.7511,2664.3,2664.1,0.03753171]
[1739229402594,0.7511,2664.3,2663.9,3.75388]
[1739229403278,0.7511,2664.3,2664.0,3.75366]
[1739229405399,0.7511,2664.3,2663.8,4.50178294]
[1739229405696,0.7511,2664.3,2663.8,4.50173294]
[1739229405859,0.7511,2664.3,2663.9,3.75387]
[1739229406062,0.7511,2664.3,2663.8,4.50173294]
[1739229406268,0.7511,2664.3,2663.9,3.79133266]
[1739229407299,0.7511,2664.3,2664.0,3.75365]
[1739229407892,0.7511,2664.3,2663.8,0.74778294]
[1739229408103,0.7511,2664.3,2664.2,3.75347]
[1739229408314,6.1011,2664.6,2664.3,3.75323]
[1739229409187,6.1011,2664.6,2664.3,7.50647]
[1739229409388,6.1011,2664.6,2664.3,3.75323]
[1739229410368,6.1011,2664.6,2664.3,7.50648]
[1739229410559,6.1011,2664.6,2664.2,0.7476502]
[1739229411053,6.1011,2664.6,2663.8,0.7937]
[1739229411054,3.75316,2664.5,2663.9,3.75386]
[1739229411287,0.7511,2664.4,2663.9,7.50767]
[1739229411603,0.7511,2664.4,2664.0,0.75460352]
[1739229412091,0.7511,2664.4,2664.0,4.50833352]
[1739229412463,0.7511,2664.4,2664.1,0.03753132]
[1739229412658,0.7511,2664.4,2664.1,3.79106132]
[1739229412992,0.7511,2664.4,2664.1,3.75353]
[1739229415265,0.7511,2664.4,2664.1,3.75352]
[1739229415797,0.7511,2664.4,2664.2,3.75346]
[1739229416295,0.7511,2664.4,2664.2,3.75345]
[1739229417099,5.35,2664.6,2664.4,3.75316]
[1739229418600,0.7897,2664.7,2664.4,3.75316]
[1739229419612,0.7897,2664.7,2664.2,3.75337]
[1739229419905,0.7897,2664.7,2664.0,0.75460352]
[1739229419906,0.7897,2664.6,2664.0,0.75460352]
[1739229420072,0.7897,2664.4,2664.0,0.75460352]
[1739229420918,0.7897,2664.4,2663.7,3.75407]
[1739229421076,0.7897,2664.2,2663.8,3.75402]
[1739229421402,4.54317,2664.2,2663.6,3.75422]
[1739229421604,4.54317,2664.2,2663.7,3.75409]
[1739229421810,0.7897,2664.2,2663.8,4.5178486]
[1739229422673,0.7897,2664.2,2663.8,0.7638286]
[1739229422876,4.5432,2664.2,2663.8,0.7638286]
[1739229423179,0.7897,2664.2,2663.8,4.5178486]
[1739229423785,4.5432,2664.2,2663.6,3.75419]
[1739229423984,4.5432,2664.2,2663.7,3.75409]
[1739229424313,3.75361,2664.1,2663.6,3.75419]
[1739229424488,0.7897,2664.2,2663.9,3.75386]
[1739229425028,0.7897,2664.2,2664.0,3.79128396]
[1739229425177,0.7897,2664.2,2664.1,3.75361]
[1739229425381,9.10296,2664.6,2664.1,3.75361]
[1739229425691,0.7897,2664.5,2664.2,0.03753023]
[1739229426292,0.7897,2664.5,2664.0,3.7537]
[1739229426476,4.54275,2664.5,2664.0,3.7537]
[1739229426689,0.7897,2664.5,2664.0,3.7537]
[1739229427195,4.54284,2664.5,2663.9,3.75381]
[1739229427715,0.7897,2664.5,2664.1,3.75359]
[1739229430421,4.54276,2664.5,2664.0,3.75372]
[1739229431331,0.7897,2664.5,2664.0,3.75372]
[1739229431545,4.54278,2664.5,2663.8,3.75393]
[1739229431688,3.75332,2664.4,2663.9,3.75387]
[1739229431889,4.54278,2664.5,2664.0,3.75375]
[1739229434958,3.75336,2664.3,2663.8,3.75403]
[1739229435255,0.8286,2664.1,2663.7,0.763528]
[1739229435406,3.75377,2664.0,2663.7,0.763528]
[1739229436245,0.8286,2664.1,2663.7,4.517668]
[1739229436808,0.8286,2664.1,2663.8,0.03753544]
[1739229437606,0.8286,2664.5,2663.9,3.75389]
[1739229437803,0.8286,2664.5,2664.1,3.75358]
[1739229438315,4.58164,2664.5,2664.1,3.75358]
[1739229438852,0.8286,2664.5,2664.1,3.75358]
[1739229439339,4.58168,2664.5,2664.0,3.75374]
[1739229440238,0.8286,2664.5,2663.9,3.75389]
[1739229440440,3.75322,2664.4,2663.9,3.75389]
[1739229440641,3.75319,2664.4,2663.7,4.517638]
[1739229440845,3.75319,2664.4,2663.9,3.75386]
[1739229440846,4.58181,2664.4,2663.9,3.75386]
[1739229441024,8.33509,2664.4,2663.9,3.75386]
[1739229441231,3.75335,2664.3,2663.9,3.75386]
[1739229442059,0.8286,2664.4,2663.9,3.75379]
[1739229442441,4.58179,2664.4,2663.9,3.75379]
[1739229444314,4.58179,2664.4,2663.9,7.50761]
[1739229444852,0.8286,2664.4,2663.9,3.75379]
[1739229445061,6.1686,2664.6,2664.1,3.75361]
[1739229445213,0.8186,2664.6,2664.3,3.75325]
[1739229447107,0.8186,2664.6,2664.3,3.7907784]
[1739229447314,0.8186,2664.6,2664.4,3.75318]
[1739229449118,0.8186,2664.6,2664.5,3.75304]
[1739229449619,0.8186,2664.9,2664.5,3.75304]
[1739229449820,6.1686,2665.2,2664.8,3.75262]
[1739229450035,6.1686,2665.2,2664.7,4.58348]
[1739229450516,9.92066,2665.2,2664.6,3.75278]
[1739229450715,9.92066,2665.2,2664.5,3.753]
[1739229450914,9.92066,2665.2,2664.7,3.75275]
[1739229451857,6.1686,2665.2,2664.8,3.75262]
[1739229452247,6.1686,2665.2,2664.7,3.75275]
[1739229453301,3.75222,2665.1,2664.6,3.75288]
[1739229453476,3.75222,2665.1,2664.5,3.75295]
[1739229453477,4.5709,2665.1,2664.5,3.75295]
[1739229453685,4.57099,2665.0,2664.3,3.75328]
[1739229453980,4.57134,2664.8,2664.4,0.75967057]
[1739229454194,0.8186,2664.8,2664.4,4.51276057]
[1739229454411,0.8186,2664.8,2664.4,4.51284057]
[1739229454785,0.8186,2664.8,2664.5,3.79053603]
[1739229455086,0.8186,2664.8,2664.5,3.75301]
[1739229455922,0.8186,2664.8,2664.1,4.5843]
[1739229456085,0.8186,2664.7,2664.2,3.7534]
[1739229456473,0.8186,2664.7,2664.1,3.75351]
[1739229456732,4.57137,2664.7,2664.1,3.75351]
[1739229456878,0.8186,2664.7,2664.2,3.75345]
[1739229457323,4.57139,2664.7,2664.2,3.75345]
[1739229457898,0.8186,2664.7,2664.2,3.75347]
[1739229458094,0.8186,2664.7,2664.4,3.75315]
[1739229459925,0.8186,2664.7,2664.3,0.03752882]
[1739229460123,0.8186,2664.7,2664.2,7.50686]
[1739229460704,0.8186,2664.7,2664.3,3.75323]
[1739229461008,0.8186,2664.7,2664.4,3.75319]
[1739229463386,0.8186,2664.7,2664.3,3.75323]
[1739229463822,4.57139,2664.7,2664.3,3.75323]
[1739229464589,0.8186,2664.7,2664.3,7.50648]
[1739229464929,0.8186,2664.7,2664.4,3.75315]
[1739229465072,0.8186,2664.7,2664.2,0.03752893]
[1739229465273,0.8186,2664.7,2664.1,4.52092004]
[1739229465524,0.8186,2664.7,2664.2,3.75347]
[1739229465720,0.8186,2664.7,2664.3,3.75319]
[1739229466015,0.8186,2664.7,2664.4,3.75318]
[1739229466392,4.57137,2664.7,2664.3,3.75319]
[1739229466717,0.8186,2664.7,2664.3,3.75319]
[1739229467271,0.8186,2664.7,2664.3,7.50643]
[1739229467811,0.8186,2664.7,2664.4,3.75315]
[1739229468173,0.8186,2664.7,2664.3,3.75319]
[1739229468373,0.8186,2664.7,2664.4,3.75311]
[1739229470129,0.8186,2664.7,2664.4,3.7531]
[1739229470276,0.8186,2664.7,2664.5,3.7529]
[1739229470478,0.7901,2664.9,2664.5,3.7529]
[1739229470679,0.7901,2664.9,2664.4,3.7531]
[1739229470907,0.7901,2664.9,2664.5,3.75304]
[1739229471919,0.7901,2664.9,2664.4,3.7531]
[1739229472127,4.54268,2664.9,2664.4,3.7531]
[1739229472417,3.75262,2664.8,2664.4,3.7531]
[1739229472644,0.7901,2664.9,2664.4,3.7531]
[1739229472827,3.75264,2664.8,2664.4,3.7531]
[1739229473037,0.7901,2664.9,2664.4,7.5062]
[1739229473407,0.7901,2664.9,2664.4,3.7531]
[1739229473607,0.7901,2664.9,2664.4,7.5062]
[1739229474252,4.5426,2664.9,2664.4,3.7531]
[1739229476141,3.75264,2664.8,2664.4,3.7531]
[1739229477343,4.54264,2664.9,2664.4,7.50621]
[1739229479345,4.54264,2664.9,2664.4,3.7531]
[1739229479552,3.75267,2664.8,2664.3,3.75332]
[1739229480051,3.75267,2664.8,2664.2,3.75337]
[1739229480349,3.75267,2664.8,2664.1,1.53301004]
[1739229480350,0.7945,2665.1,2664.1,0.76741004]
[1739229480657,0.7945,2664.7,2664.1,0.76741004]
[1739229480837,0.7945,2664.7,2664.3,3.75321]
[1739229482852,4.54733,2664.7,2664.1,8.27443004]
[1739229483158,4.54733,2664.7,2664.2,3.7534]
[1739229483523,0.7945,2664.7,2664.3,3.75323]
[1739229484455,3.75299,2664.6,2664.1,0.76741004]
[1739229484749,0.7945,2664.5,2664.1,0.76741004]
[1739229485343,0.7945,2664.5,2664.1,4.52097004]
[1739229485780,0.7945,2664.5,2664.2,3.75342]
[1739229487718,0.8278,2664.8,2664.3,4.51391]
[1739229487944,4.58046,2664.8,2664.3,4.51391]
[1739229488544,4.58046,2664.8,2664.3,8.26712]
[1739229488755,4.58046,2664.8,2664.3,8.26716]
[1739229489132,0.8278,2664.8,2664.3,4.51391]
[1739229489332,0.8278,2664.8,2664.4,3.75306]
[1739229490762,0.8278,2664.8,2664.3,4.51391]
[1739229491067,4.58043,2664.8,2664.3,8.26715]
[1739229491941,4.58043,2664.8,2664.3,4.51391]
[1739229492152,4.58043,2664.8,2664.3,3.75321]
[1739229492336,3.75299,2664.6,2664.1,0.76741004]
[1739229492541,3.75299,2664.6,2664.1,4.52093004]
[1739229494068,4.58057,2664.7,2664.2,3.75345]
[1739229494265,0.8278,2664.7,2664.3,3.75327]
[1739229494470,4.58064,2664.7,2664.2,3.75345]
[1739229497148,0.8278,2664.7,2664.3,3.75333]
[1739229497886,4.58064,2664.7,2664.2,3.75347]
[1739229499168,4.58064,2664.7,2664.1,0.76741004]
[1739229499344,4.58064,2664.7,2663.8,3.75393]
[1739229499345,0.8278,2664.2,2663.8,3.75393]
[1739229499550,0.8278,2664.2,2663.8,7.50786]
[1739229499749,0.8278,2664.2,2663.9,3.7538]
[1739229499948,0.8278,2664.2,2664.0,3.75369]
[1739229500268,0.8278,2664.4,2663.9,0.80161876]
[1739229500466,0.8278,2664.4,2663.9,4.51795276]
[1739229500764,0.8278,2664.4,2664.0,3.75375]
[1739229501132,0.8278,2664.4,2664.0,3.75367]
[1739229501338,6.1778,2664.7,2664.2,3.75335]
[1739229501572,6.1778,2664.7,2664.3,3.75322]
[1739229504060,9.93057,2664.7,2664.2,3.75346]
[1739229504380,6.1778,2664.7,2664.3,3.75329]
[1739229507717,4.53317,2664.6,2664.1,7.507]
[1739229507896,4.53317,2664.6,2664.1,3.75347]
[1739229508202,8.28616,2664.6,2664.0,3.75363]
[1739229508382,4.53317,2664.6,2664.1,3.75353]
[1739229509008,4.53317,2664.6,2664.2,3.75346]
[1739229510686,4.53317,2664.6,2664.0,3.75363]
[1739229511499,0.7802,2664.6,2664.2,3.75344]
[1739229511680,0.7802,2664.6,2664.2,7.50682]
[1739229512101,0.7802,2664.6,2664.2,3.75338]
[1739229513280,0.7802,2664.6,2664.3,3.75329]
[1739229513844,5.2302,2664.7,2664.3,3.75329]
[1739229516863,0.7802,2664.6,2664.3,3.75329]
[1739229519038,0.7802,2664.6,2664.2,3.75338]
[1739229519574,0.7802,2664.6,2664.2,7.50677]
[1739229519866,0.7802,2664.6,2664.3,3.75331]
[1739229520047,0.7802,2664.6,2664.2,3.75338]
[1739229520443,0.7802,2664.6,2664.3,3.7533]
[1739229522683,0.7802,2664.6,2664.0,3.75364]
[1739229522984,3.75307,2664.5,2664.0,3.75364]
[1739229523587,0.7802,2664.6,2664.0,3.75364]
[1739229523588,4.53317,2664.6,2664.0,3.75364]
[1739229524141,8.28619,2664.6,2664.0,3.75364]
[1739229524493,3.75319,2664.4,2663.9,1.56448276]
[1739229524790,3.75319,2664.4,2663.9,5.31836276]
[1739229525344,3.75319,2664.4,2664.0,3.75375]
[1739229528815,3.75319,2664.4,2663.9,5.31835276]
[1739229529973,0.7802,2664.6,2663.9,1.56448276]
[1739229530308,3.75304,2664.5,2663.9,1.56448276]
[1739229530515,3.75304,2664.5,2664.0,3.75368]
[1739229532519,3.75354,2664.2,2663.9,0.76408276]
[1739229533066,3.75375,2664.0,2663.7,0.8298]
[1739229533294,3.75431,2663.7,2663.4,4.28897807]
[1739229533481,0.767,2664.0,2663.5,3.75437]
[1739229533681,0.767,2664.0,2663.6,3.75423]
[1739229533923,0.767,2664.0,2663.6,3.75431]
[1739229534119,3.7532,2664.4,2663.6,0.8298]
[1739229534272,3.7532,2664.4,2663.8,4.58369]
[1739229534464,3.7532,2664.4,2663.9,3.75387]
[1739229536019,4.52009,2664.5,2663.9,3.75378]
[1739229536213,8.27322,2664.5,2664.0,3.75364]
[1739229536516,3.75321,2664.4,2663.8,4.58369]
[1739229536671,3.75334,2664.3,2663.8,0.8298]
[1739229536873,4.52055,2664.2,2663.8,0.8298]
[1739229537991,4.52055,2664.2,2663.8,5.34953955]
[1739229538313,4.52055,2664.2,2663.8,1.59550955]
[1739229538513,8.2741,2664.2,2663.8,1.59550955]
[1739229538719,4.52055,2664.2,2663.8,1.59550955]
[1739229539215,0.767,2664.2,2663.8,5.34949955]
[1739229539538,3.75336,2664.3,2663.8,5.34949955]
[1739229540606,3.75333,2664.3,2663.8,1.59550955]
[1739229541421,3.75343,2664.3,2663.8,0.76570955]
[1739229541795,3.75343,2664.3,2663.8,4.51965955]
[1739229542405,3.7534,2664.3,2663.8,0.76570955]
[1739229542610,3.7534,2664.3,2663.8,4.51973955]
[1739229544541,3.75358,2664.2,2663.8,0.76570955]
[1739229547121,7.50718,2664.2,2663.8,0.76570955]